Cogmind - Beta 13 @@@ ROGUE MODE // 2024.07.28 @ 22:05:21 Player: Norb Result: Destroyed by Y-45 Defender with Heavy Assault Rifle Performance ------------- Evolutions (1) 500 Regions Visited (5) 1000 Robots Destroyed (38) 190 Value Destroyed (1369) 1369 Prototype IDs (2) 40 Alien Tech Used (0) 0 Bonus (681) 681 TOTAL SCORE: 3780 Bonus ------- High Alert Combat Kills 32 Follower Combat Kills 449 Entered Garrisons 200 Cogmind --------- Core Integrity 0/400 Matter 265/300 Energy 250/250 System Corruption 0% Temperature Cool (9) Movement Core (300) Ox5 Location -9/Garrison Parts ------- > --- POWER (1) -------- Ion Engine > --- PROPULSION (3) --- (None) > --- UTILITY (3) ------ Small Storage Unit Improved Terrain Scanner Medium Armor Plating > --- WEAPON (2) ------- (None) > --- INVENTORY (8) ---- Visual Processing Unit Light Armor Plating Plasma Cutter Peak State ------------ > --- POWER ------------ Light Nuclear Core > --- PROPULSION ------- Light Treads Light Treads Light Treads > --- UTILITY ---------- Huge Storage Unit Improved Terrain Scanner Light Armor Plating > --- WEAPON ----------- Particle Cannon Advanced Beam Cannon > --- INVENTORY -------- Ion Engine Light Ion Engine Light Treads Light Treads Light Treads Small Storage Unit Visual Processing Unit Propulsion Shielding Light Armor Plating Medium Laser Small Laser Beam Rifle Beam Rifle Heavy Assault Rifle Heavy Assault Rifle Improved Assault Rifle Improved Assault Rifle Improved Assault Rifle Plasma Cutter [Rating: 19] Favorites ----------- Power Light Nuclear Core Engine Ion Engine Power Core Light Nuclear Core Propulsion Light Treads Treads Light Treads Flight Unit VTOL Module Utility Huge Storage Unit Device Improved Terrain Scanner Storage Huge Storage Unit Processor Signal Interpreter Protection Light Armor Plating Weapon Particle Cannon Energy Gun Medium Laser Energy Cannon Particle Cannon Ballistic Gun Improved Assault Rifle Build | -11 -10 -10 -9 -9 -9 ------- Run | Yrd Mat Min Mat Sto Gar Slots Evolved 2 | . . . 2 . . Power . | . . . . . . Propulsion 1 | . . . 1 . . Utility 1 | . . . 1 . . Weapon . | . . . . . . Parts Attached 52 | 6 8 . 17 10 11 Power 8 | 1 1 . 2 2 2 Engine 5 | 1 1 . . 1 2 Core 3 | . . . 2 1 . Reactor . | . . . . . . Propulsion 19 | 2 . . 9 4 4 Treads 16 | 2 . . 6 4 4 Leg . | . . . . . . Wheel . | . . . . . . Hover . | . . . . . . Flight 3 | . . . 3 . . Utility 15 | 1 4 . 4 1 5 Device 1 | . . . 1 . . Storage 5 | 1 2 . 1 . 1 Processor 2 | . 1 . 1 . . Hackware . | . . . . . . Protection 7 | . 1 . 1 1 4 Artifact . | . . . . . . Weapon 10 | 2 3 . 2 3 . Energy Gun 3 | 1 . . 1 1 . Energy Cannon 2 | . . . . 2 . Ballistic Gun 5 | 1 3 . 1 . . Ballistic Cannon . | . . . . . . Launcher . | . . . . . . Special Weapon . | . . . . . . Impact Weapon . | . . . . . . Slashing Weapon . | . . . . . . Piercing Weapon . | . . . . . . Special Melee Weapon . | . . . . . . Unidentified Prototypes 2 | . 1 . . 1 . Parts Lost 21 | . 1 . 4 4 12 Power 3 | . . . . 1 2 Propulsion 11 | . 1 . 2 2 6 Utility 4 | . . . . 1 3 Weapon 3 | . . . 2 . 1 Highest Loss Streak 10 | . 1 . 2 2 10 To Critical Strikes . | . . . . . . Average Slot Usage (%) 96 | . 94 85 95 99 96 Engine 4 | . 14 14 . . 5 Core 7 | . . . 10 10 5 Treads 30 | . 25 14 29 33 32 Device 8 | . . . 7 11 11 Storage 11 | . 11 14 13 11 10 Processor 2 | . 11 14 1 . . Protection 8 | . 3 . 9 10 9 Energy Gun 3 | . 5 . 9 3 . Energy Cannon 10 | . . . . 16 21 Ballistic Gun 7 | . 22 28 11 2 . Naked Turns . | . . . . . . Heaviest Build 98 | 13 16 16 98 97 97 Greatest Support 60 | 40 40 20 60 60 60 Greatest Overweight (x) 5 | 1 . . 3 1 5 Average Overweight (x) . | . . . . 1 1 Largest Inventory Capacity 25 | 8 25 8 25 25 25 Average Capacity 21 | 6 7 8 22 25 24 Most Carried 25 | 3 8 8 13 24 25 Average Carried 15 | 1 5 8 10 17 24 Final Capacity 25 | 8 8 8 25 25 8 Final Carried 24 | 2 8 8 12 24 3 Class Distribution -------------------- 59% | Scavenger-Mutant 34% | Mutant 5% | Commander-Mutant Dominant Class ---------------- Mutant | -10/Materials Mutant | -10/Mines Scavenger-Mutant | -9/Materials Scavenger-Mutant | -9/Storage Scavenger-Mutant | -9/Garrison Resources | -11 -10 -10 -9 -9 -9 ----------- Run | Yrd Mat Min Mat Sto Gar Matter Collected 1010 | 183 347 77 113 260 30 Remotely . | . . . . . . Salvage Created 1492 | . 579 141 113 399 260 Parts 99 | . 35 9 14 20 21 Haulers Intercepted . | . . . . . . Recyclers Shooed 2 | . 1 . . 1 . Parts Field Recycled . | . . . . . . Retrieved Matter . | . . . . . . Parts Self-Destructed . | . . . . . . Prevented . | . . . . . . Kills | -11 -10 -10 -9 -9 -9 ------- Run | Yrd Mat Min Mat Sto Gar Combat Hostiles Destroyed 28 | . 13 2 2 4 7 Guns 21 | . 13 2 2 4 . Cannons 7 | . . . . . 7 Classes Destroyed 8 | . 3 1 2 . 2 Worker 3 | . 1 . . 2 . Tunneler 1 | . . . 1 . . Recycler 3 | . . 1 . 2 . Watcher 3 | . 2 . . 1 . Swarmer 1 | . . . . . 1 Cutter 2 | . . . . . 2 Grunt 18 | . 13 2 . 1 2 Sentry 7 | . . . 2 3 2 Best Kill Streak 7 | . 7 2 2 3 2 Combat Bots Only 5 | . 5 2 1 2 2 Max Kills in Single Turn 2 | . 1 1 1 2 1 Gunslinging 1 | . . . . 1 . Exploded . | . . . . . . Melee . | . . . . . . Uniques/NPCs Destroyed . | . . . . . . Combat | -11 -10 -10 -9 -9 -9 -------- Run | Yrd Mat Min Mat Sto Gar Hostile Shots Fired 331 | . 67 3 26 70 165 Missed 90 | . 12 . 7 23 48 Damage Taken 3406 | . 671 37 275 651 1772 Core 547 | . 115 27 28 41 336 Absorbed by Shields . | . . . . . . Core Remaining (%) 71 | 100 . 43 . . . Volleys Fired 141 | . 40 7 14 43 37 Largest 2 | . 2 2 2 2 2 Hottest 136 | . 70 46 73 136 136 Shots Fired 271 | . 80 15 19 84 73 Gun 172 | . 80 15 19 58 . Cannon 99 | . . . . 26 73 Launcher . | . . . . . . Special . | . . . . . . Kinetic 135 | . 77 15 14 29 . Thermal 136 | . 3 . 5 55 73 Explosive . | . . . . . . Electromagnetic . | . . . . . . Robot Hit Streak 15 | . 14 4 15 7 13 Robot Miss Streak 4 | . 4 1 1 2 2 Penetration Max . | . . . . . . Secondary Targets 2 | . 1 . . 1 . Max Gunslinging Chain 1 | . 1 . . 1 . Shots Hit Robots 129 | . 58 6 17 29 19 Core Hits 58 | . 28 5 5 12 8 Critical Kills . | . . . . . . Critical Parts Destroyed . | . . . . . . Critical Strikes . | . . . . . . Melee Attacks . | . . . . . . Impact . | . . . . . . Slashing . | . . . . . . Piercing . | . . . . . . Sneak Attacks . | . . . . . . Combat Hostiles . | . . . . . . Follow-up Attacks . | . . . . . . Damage Inflicted 2164 | . 887 94 268 484 431 Guns 1538 | . 881 94 268 295 . Cannons 577 | . . . . 146 431 Explosions . | . . . . . . Melee . | . . . . . . Ramming 49 | . 6 . . 43 . Kinetic 1326 | . 855 94 204 173 . Thermal 789 | . 26 . 64 268 431 Explosive . | . . . . . . Electromagnetic . | . . . . . . Impact . | . . . . . . Slashing . | . . . . . . Piercing . | . . . . . . Highest Corruption 3 | . 3 3 . . . Average Corruption 2 | . 2 3 . . . Corruption Purged . | . . . . . . Corruption Blocked . | . . . . . . Effects 13 | . 6 7 . . . Message Errors 3 | . . 3 . . . Matter Fused 4 | . 1 3 . . . Heat Flow Errors 1 | . 1 . . . . Data Loss (minor) 4 | . 4 . . . . Misfires 1 | . . 1 . . . Overload Shots . | . . . . . . Overflow Damage 1 | . . . . 1 . Projectiles 1 | . . . . 1 . Explosions . | . . . . . . Melee . | . . . . . . Knockbacks . | . . . . . . Impact . | . . . . . . Kinetic . | . . . . . . Secondary . | . . . . . . Self-Inflicted Damage . | . . . . . . Shots . | . . . . . . Rammed 6 | . 1 . . 5 . Targets Rammed 7 | . 1 . . 6 . Kicked . | . . . . . . Crushed 1 | . . . . 1 . Highest Temperature 477 | . 99 1 117 324 477 Average Temperature 73 | . 24 1 55 71 93 Received Heat Transfer 1275 | . 372 21 81 171 630 Effects 6 | . . . . 2 4 Shutdowns 1 | . . . . . 1 Energy Bleed 1 | . . . . . 1 Interference 4 | . . . . 2 2 Siege Activations . | . . . . . . Robots Corrupted . | . . . . . . Combat Hostiles . | . . . . . . Parts Fried . | . . . . . . Impact Corruptions . | . . . . . . Robots Melted . | . . . . . . Combat Hostiles . | . . . . . . Parts Melted 1 | . . . . . 1 Heat Transferred 1548 | . 74 . 185 629 660 Parts Sabotaged . | . . . . . . Parts Stolen . | . . . . . . Parts Stripped . | . . . . . . Power Chain Reactions . | . . . . . . Alert | -11 -10 -10 -9 -9 -9 ------- Run | Yrd Mat Min Mat Sto Gar Peak Influence 798 | . 215 166 104 110 798 Initial 72 | . . 72 64 . 56 Average 170 | . 84 109 29 27 517 Maximum Alert Level 3 | . 1 . . . 3 Low Security (%) 74 | 100 99 100 100 100 7 Level 1 6 | . . . . . 22 Level 2 11 | . . . . . 41 Level 3 7 | . . . . . 28 Level 4 . | . . . . . . Level 5 . | . . . . . . High Security . | . . . . . . Max Security . | . . . . . . Squads Dispatched 2 | . 2 . . . . Investigation 1 | . 1 . . . . Extermination . | . . . . . . Reinforcement 1 | . 1 . . . . Assault . | . . . . . . Garrison . | . . . . . . Intercept . | . . . . . . Searches Triggered . | . . . . . . Construction Impeded . | . . . . . . Haulers Reinforced . | . . . . . . Active Scanning Responses . | . . . . . . Cargo Convoy Interrupts . | . . . . . . Stealth | -11 -10 -10 -9 -9 -9 --------- Run | Yrd Mat Min Mat Sto Gar Distress Signals 2 | . 1 . . 1 . Communications Jammed . | . . . . . . Distress Signals . | . . . . . . Times Spotted 65 | . 22 2 2 12 27 Peak Tracking Total 8 | . 5 2 1 3 8 Tactical Retreats . | . . . . . . Traps | -11 -10 -10 -9 -9 -9 ------- Run | Yrd Mat Min Mat Sto Gar Traps Triggered 7 | . 2 . . 1 4 Indirectly . | . . . . . . Trap Hack Attempts . | . . . . . . Triggered . | . . . . . . Disarmed . | . . . . . . Reprogrammed . | . . . . . . Reused . | . . . . . . Traps Extracted . | . . . . . . Installed . | . . . . . . Triggered . | . . . . . . Machines | -11 -10 -10 -9 -9 -9 ---------- Run | Yrd Mat Min Mat Sto Gar Machines Disabled 9 | . . 2 . 4 3 Max in Single Turn 1 | . . 1 . 1 1 Garrison Relay 1 | . . . . . 1 Machines Repaired . | . . . . . . Machines Dismantled . | . . . . . . Machines Sabotaged . | . . . . . . Overloaded Fab Kills . | . . . . . . Hacking | -11 -10 -10 -9 -9 -9 --------- Run | Yrd Mat Min Mat Sto Gar Machines Accessed 9 | . 2 . 1 5 1 Terminals 6 | . 2 . . 3 1 Fabricators . | . . . . . . Repair Stations . | . . . . . . Recycling Units 2 | . . . 1 1 . Scanalyzers . | . . . . . . Garrison Access 1 | . . . . 1 . Total Hacks 21 | . 7 . 2 11 1 Successful 11 | . 4 . 2 4 1 Failed 10 | . 3 . . 7 . Catastrophic 1 | . 1 . . . . Database Lockouts . | . . . . . . Manual 3 | . 3 . . . . Terminals 16 | . 7 . . 8 1 Fabricators . | . . . . . . Repair Stations . | . . . . . . Recycling Units 4 | . . . 2 2 . Scanalyzers . | . . . . . . Garrison Access 1 | . . . . 1 . Terminal Hacks 7 | . 4 . . 2 1 Emergency Access Points 2 | . 1 . . . 1 Alert Level 1 | . . . . 1 . Locate Traps 1 | . 1 . . . . Dispatch Records 1 | . 1 . . . . Zone Layout 2 | . 1 . . 1 . Fabricator Hacks . | . . . . . . Repair Station Hacks . | . . . . . . Recycling Unit Hacks 3 | . . . 2 1 . Report Inventory 1 | . . . 1 . . Retrieve Components 2 | . . . 1 1 . Scanalyzer . | . . . . . . Garrison Access Hacks 1 | . . . . 1 . Unlock Access 1 | . . . . 1 . Unauthorized Hacks . | . . . . . . Terminals . | . . . . . . Fabricators . | . . . . . . Repair Stations . | . . . . . . Recycling Units . | . . . . . . Scanalyzers . | . . . . . . Garrison Access . | . . . . . . Data Cores Recovered . | . . . . . . Used . | . . . . . . Hacking Detections 5 | . 2 . . 3 . Full Trace Events 4 | . 2 . . 2 . Feedback Events . | . . . . . . Feedback Blocked . | . . . . . . Robot Schematics Acquired . | . . . . . . Robots Built . | . . . . . . Authchips . | . . . . . . Time . | . . . . . . Total Robot Build Rating . | . . . . . . Part Schematics Acquired . | . . . . . . Parts Built . | . . . . . . Authchips . | . . . . . . Time . | . . . . . . Total Part Build Rating . | . . . . . . Parts Repaired . | . . . . . . Time . | . . . . . . Parts Recycled . | . . . . . . Recycled Matter . | . . . . . . Retrieved Matter . | . . . . . . Retrieved Components 10 | . . . 1 9 . Parts Scanalyzed . | . . . . . . Part Schematics Acquired . | . . . . . . Parts Damaged . | . . . . . . Bothacking | -11 -10 -10 -9 -9 -9 ------------ Run | Yrd Mat Min Mat Sto Gar Used RIF Installer . | . . . . . . Robots Hacked . | . . . . . . Non-combat . | . . . . . . Combat . | . . . . . . Robot Hacks Applied . | . . . . . . Relay Couplers Released 4 | . . . . . 4 Machine Destruction 4 | . . . . . 4 Fabnet Peak Effective % . | . . . . . . Robots Rewired . | . . . . . . Allies Hacked . | . . . . . . Hacks Repelled . | . . . . . . Allies | -11 -10 -10 -9 -9 -9 -------- Run | Yrd Mat Min Mat Sto Gar Total Allies 10 | . . . . 10 . Largest Group 10 | . . . . 10 8 Highest-Rated Group 88 | . . . . 88 72 Highest-Rated Ally 16 | . . . . 16 16 Total Orders . | . . . . . . Ally Attacks 111 | . . . . 20 91 Total Damage 1054 | . . . . 196 858 Kills 21 | . . . . 3 18 Allies Corrupted . | . . . . . . Allies Melted . | . . . . . . Intel | -11 -10 -10 -9 -9 -9 ------- Run | Yrd Mat Min Mat Sto Gar Robot Analysis Total . | . . . . . . Derelict Logs Recovered . | . . . . . . Drone Launches . | . . . . . . Drone Recoveries . | . . . . . . Exploration | -11 -10 -10 -9 -9 -9 ------------- Run | Yrd Mat Min Mat Sto Gar Turns Passed 6205 | 109 707 292 1485 1928 1684 Spaces Moved 2028 | 69 350 170 379 432 628 Core 21 | 17 . . . . 4 Treads 1993 | 52 350 170 365 432 624 Legs . | . . . . . . Wheels . | . . . . . . Hover . | . . . . . . Flight 14 | . . . 14 . . Fastest Speed 50 | 50 160 160 109 240 160 Average Speed 212 | 139 160 160 216 240 242 Slowest Speed 480 | 160 160 160 320 240 480 Overloaded Moves . | . . . . . . Propulsion Burnouts . | . . . . . . Robots Hopped . | . . . . . . Cave-ins Triggered . | . . . . . . Exploration Rate (%) 41 | 4 46 58 18 48 75 Regions Visited 5 Branch Regions 2 Pre-discovered Areas . | . . . . . . Known Exits Taken 4 | . 1 1 1 1 . Unknown Exits Taken 1 | 1 . . . . . Scrap Searched . | . . . . . . Spaces Dug . | . . . . . . Terrain Destroyed 10 | . . 10 . . . Melee . | . . . . . . Projectile . | . . . . . . AOE 10 | . . 10 . . . Terrain Rammed . | . . . . . . Walls Destroyed . | . . . . . . Machines Disabled . | . . . . . . Actions | -11 -10 -10 -9 -9 -9 --------- Run | Yrd Mat Min Mat Sto Gar Total 3655 | 82 417 176 1026 1229 725 Wait 1362 | . 5 . 596 721 40 Move 2017 | 68 349 169 378 431 622 Hop . | . . . . . . Pick Up 56 | 8 10 . 16 16 6 Fast Attach . | . . . . . . Attach 32 | 6 2 . 10 4 10 Detach 3 | . 1 . 2 . . Swap 20 | . 6 . 7 6 1 Drop 9 | . 3 . 3 . 3 Fire 141 | . 40 7 14 43 37 Melee . | . . . . . . Ram . | . . . . . . Kick . | . . . . . . Crush 7 | . 1 . . 6 . Escape Stasis 8 | . . . . 2 6 Rewire . | . . . . . . Trap . | . . . . . . Miscellaneous . | . . . . . . Route ------- -11/Scrapyard -10/Materials (discovered 2 exits: *Mat / *Min) -10/Mines -9/Materials -9/Storage -9/Garrison (discovered 2 exits: [*Rec x2]) History --------- Turn | Location | Event 28 | -11/Scrapyard | Discovered new exit (range 15) 110 | -11/Scrapyard | Entered Materials 313 | -10/Materials | Build established: Mutant 619 | -10/Materials | Discovered new exit (range 16) 745 | -10/Materials | Discovered new exit (range 15) 769 | -10/Materials | Identified exit to Mines 817 | -10/Materials | Entered Mines 1015 | -10/Mines | Core integrity fell below 50% 1088 | -10/Mines | Discovered new exit (range 10) 1102 | -10/Mines | Identified exit to Materials 1109 | -10/Mines | Entered Materials 1109 | -9/Materials | Evolved 2 slots: Propulsion x1, Utility x1 1109 | -9/Materials | Discovered new exit (range 7) 1137 | -9/Materials | Identified exit to Storage 1822 | -9/Materials | Build established: Scavenger-Mutant 2594 | -9/Materials | Entered Storage 4286 | -9/Storage | Assisted by bots powering up and referring to "LRC-V3" 4520 | -9/Storage | Identified exit to Garrison 4522 | -9/Storage | Entered Garrison 4522 | -9/Garrison | Accompanied by 8 allies 4576 | -9/Garrison | Build established: Commander-Mutant 4653 | -9/Garrison | Lost 4 allies 4694 | -9/Garrison | Triggered checkpoint 4724 | -9/Garrison | Triggered checkpoint 4747 | -9/Garrison | Triggered checkpoint 4916 | -9/Garrison | Triggered checkpoint 4918 | -9/Garrison | Build established: Scavenger-Mutant 5054 | -9/Garrison | Discovered new exit (range 4) 5069 | -9/Garrison | Attempted to access garrison exit controls, blocked by remote lockdown 5446 | -9/Garrison | Triggered checkpoint 5525 | -9/Garrison | Garrison Relay disabled 5703 | -9/Garrison | Discovered new exit (range 15) 5744 | -9/Garrison | Attempted to access garrison exit controls, blocked by remote lockdown 5843 | -9/Garrison | Build established: Mutant 6088 | -9/Garrison | Spotted B-75 Beast 6088 | -9/Garrison | Spotted B-75 Beast 6136 | -9/Garrison | Core integrity fell below 50% 6185 | -9/Garrison | Core integrity fell below 20% 6206 | -9/Garrison | Destroyed by Y-45 Defender with Heavy Assault Rifle Last Messages --------------- 06097_ Field strength at 70. 06100_ Field strength at 40. 06101_ Field strength at 10. 06102_ Stasis field depleted. 06106_ B-75 Beast springs to life. 06109_ Lgt. Treads destroyed. 06115_ Adv. Beam Cannon blasted off. 06131_ Lgt. Armor Plating destroyed. 06135_ Lgt. Treads destroyed. 06153_ Critical hit (Meltdown: +330). 06157_ Overheating: System interference. 06157_ Imp. Terrain Scanner temporarily disabled. 06157_ Particle Cannon temporarily disabled. 06162_ Ion Engine destroyed. 06168_ Lgt. Treads destroyed. 06180_ Med. Armor Plating destroyed. 06183_ Dropped Huge Storage Unit. 06184_ Particle Cannon destroyed. 06194_ Lgt. Treads destroyed. Map ----- +----------------------------------------------------+ | ??????????????????????????????????????# %= | | ??????????????????????????????????????# | | ??????????????????????????????????????# | | ??????????????????????????????????????### ## | | ??????????????????????################### ## | | ??????????????++++++??# [% | | ??????????????????????+ *%= | | ??????????????????????+ [[%[ * | | ??????????????????????# ###"############ ## !%! | | ??????????????????????# ??# ########???# ## [ | | ?????????+???????+????# ??# "!!!]]#???# ##+### | | ??????????????????????# ??####! ]]#???# #????? | | ??????????????????????# ########+####### #????? | | ??????????????????????+ +????? | | ??????????????????????# ########+####### #????? | | ??????????????????????# #??????! !?????# #????? | | ??????????????????????# #??????! !?+???# #????? | | ??????????????????????# #?????#####????# #????? | | ??????????????????????# #?????###??????# #????? | | ??????????????????????# #######"#####+## #????? | | ??????????????????????# ;!%%[*[[ % % #????? | | ?????????????????+????# [[[*![!![ #????? | | ??????????????????????# [#######! ##### ###????? | | ??????????????????????#% #?????# #???# %#??????? | | ?????????????????+????# #?????# "#??# %#??????? | | ??????????????????????+ @#?????# ##??# #??????? | | ?????????????????+????# #?????# #???# #??????? | | ??????????????????????# #?????# #???# #??????? | | ??????????????????????# #?????# #???#] #??????? | | ??????????????????????# #????##//#####""###????? | | ??????????????????????#Y #???# #????? | | ?????????????????????+ #???# #????? | | ??????????????????????# #???# +????? | | ??????????????????????# #???# +????? | | ??????????????????????# ????# +????? | | ??????????????????????# +???+ +????? | | ??????????????????????# ????# +????? | | ??????????????????????# ????# +????? | | ??????????????????????# ????# #????? | | ?????????????????????? ????# #????? | | ??????????????????????? ????#######+#######????? | | ?????????????????????????????????????????????????? | | ?????????????????????????????????????????????????? | | ?????????????????????????????????????????????????? | | ?????????????????????????????????????????????????? | | ?????????????????????????????????????????????????? | | ?????????????????????????????????????????????????? | | ?????????????????????????????????????????????????? | | ?????????????????????????????????????????????????? | | ?????????????????????????????????????????????????? | +----------------------------------------------------+ Best States ------------- Heat Dissipation 28 Energy Generation 14 Energy Capacity 250 Matter Stores 300 Matter Capacity 300 Sight Range 16 Terrain Scan Range 16 Terrain Scan Density 10 Armor Coverage 225 Evasion (%) 40 Recoil Reduction 3 Item Schematics ----------------- None Robot Schematics ------------------ None Fabricated ------------ Nothing Alien Tech Used ----------------- None Achievements -------------- None Challenges ------------ None Game ------ Seed BiometalBombardmentArmor Manual? 0 Play Time 00:37:33 Cumulative 9.3 hours Start 2024.07.28 @ 21:27:22 End 2024.07.28 @ 22:05:21 Sessions 1 Manual Loads 0 Difficulty Rogue Special Mode None Game No. 10 Rogue 10 Adventurer 0 Explorer 0 Win Type - Total 0 Types 0/0/0/0/0/0/0/0/0 Lore% 14 Gallery% 14 Achievement% 15 Wizard Run 0 Options --------- Layout 1 ASCII 0 Keyboard 1 Movement Arrows Keybinds 0 Fullscreen 2 Font 24/Terminus Map View 50x35 Zoom Use 0% Tactical HUD 1 Map Filters NONE Filters NONE Steam 1 RUN: ba5ed9f3-fd73-4b50-adff-6898e9ac7a62